Cogmind - Beta 16 @@@ ROGUE MODE // 2026.01.15 @ 23:14:53 Player: noklam Result: Destroyed by NK-0LA with NK-0LA's Tesla Doomcannon Performance ------------- Evolutions (4) 2000 Regions Visited (13) 2600 Robots Destroyed (54) 270 Value Destroyed (1912) 1912 Prototype IDs (25) 500 Alien Tech Used (0) 0 Bonus (1174) 1174 TOTAL SCORE: 8456 Bonus ------- Follower Combat Kills 74 Entered DSFs 500 Aligned with FarCom 300 Met Imprinter 300 Cogmind --------- Core Integrity 0/850 Matter 270/300 Energy 81/100 System Corruption 2% Temperature Cool (0) Movement Core (50) Location -6/Zion Parts ------- > --- POWER (3) -------- (None) > --- PROPULSION (4) --- (None) > --- UTILITY (5) ------ Advanced Weight Redist. System Makeshift Terrain Scan Processor > --- WEAPON (3) ------- Makeshift Axe > --- INVENTORY (5) ---- Heavy Riot Gun Missile Launcher Self-destruct Interrupter (50) Peak State ------------ > --- POWER ------------ Light Angular Momentum Engine Light Angular Momentum Engine > --- PROPULSION ------- Carbon-fiber Leg Carbon-fiber Leg Carbon-fiber Leg Flexi-carbon Leg > --- UTILITY ---------- Advanced Heat Sink Advanced Heat Sink Weight Redist. System Improved Light Armor Plating Hacking Suite > --- WEAPON ----------- Proton Cannon AWS/Gauss > --- INVENTORY -------- Improved Deuterium Engine Improved Deuterium Engine Improved Deuterium Engine Field Laser Missile Launcher [Rating: 64] Favorites ----------- Power Improved Deuterium Engine Engine Improved Deuterium Engine Power Core Light Nuclear Core Propulsion Flight Unit Treads Light Treads Leg Carbon-fiber Leg Hover Unit Improved Gravmag System Flight Unit Flight Unit Utility Weight Redist. System Device Weight Redist. System Storage Small Storage Unit Processor Advanced Terrain Scan Processor Hackware Hacking Suite Protection Improved Light Armor Plating Weapon Field Laser Energy Gun Field Laser Energy Cannon Proton Cannon Ballistic Gun Enhanced Autogun Launcher Missile Launcher Special Weapon Remote Datajack Impact Weapon Mace Slashing Weapon Katana Build | -11 -10 -10 -9 -9 -9 -8 -8 -7 -7 -6 -6 -6 -6 ------- Run | Yrd Mat Min Mat Min Exi Min Mat Fac DSF Fac Low Low Zio Slots Evolved 8 | . . . 2 . . . 2 2 . 2 . . . Power 2 | . . . . . . . 1 1 . . . . . Propulsion 2 | . . . 1 . . . . . . 1 . . . Utility 3 | . . . 1 . . . 1 . . 1 . . . Weapon 1 | . . . . . . . . 1 . . . . . Parts Attached 104 | 6 10 4 7 2 1 . 31 5 4 6 9 15 4 Power 15 | 1 2 1 1 . . . 6 . 1 . 2 1 . Engine 13 | 1 2 1 1 . . . 4 . 1 . 2 1 . Core 2 | . . . . . . . 2 . . . . . . Reactor . | . . . . . . . . . . . . . . Propulsion 29 | 2 4 1 2 2 . . 7 . 2 . 4 5 . Treads 1 | . . . . . . . 1 . . . . . . Leg 7 | 2 . . . . . . . . . . 3 2 . Wheel . | . . . . . . . . . . . . . . Hover 4 | . 2 . . . . . . . . . 1 1 . Flight 17 | . 2 1 2 2 . . 6 . 2 . . 2 . Utility 31 | 1 1 2 3 . . . 8 1 1 4 2 5 3 Device 22 | . 1 2 3 . . . 5 . . 4 1 4 2 Storage 1 | 1 . . . . . . . . . . . . . Processor 2 | . . . . . . . . 1 . . . . 1 Hackware 2 | . . . . . . . 1 . 1 . . . . Protection 4 | . . . . . . . 2 . . . 1 1 . Artifact . | . . . . . . . . . . . . . . Weapon 29 | 2 3 . 1 . 1 . 10 4 . 2 1 4 1 Energy Gun 12 | . 3 . 1 . . . 2 4 . 1 1 . . Energy Cannon 1 | . . . . . . . . . . . . 1 . Ballistic Gun 7 | 2 . . . . 1 . 4 . . . . . . Ballistic Cannon . | . . . . . . . . . . . . . . Launcher 4 | . . . . . . . 2 . . . . 2 . Special Weapon 1 | . . . . . . . . . . 1 . . . Impact Weapon 2 | . . . . . . . 1 . . . . 1 . Slashing Weapon 2 | . . . . . . . 1 . . . . . 1 Piercing Weapon . | . . . . . . . . . . . . . . Special Melee Weapon . | . . . . . . . . . . . . . . Unidentified Prototypes 2 | . . 1 . . . . 1 . . . . . . Corrupted Parts 1 | . . . . . . . . . . . . 1 . System Corruption 3 | . . . . . . . . . . . . 3 . Parts Lost 59 | . . 1 4 . . . 20 . 2 . 8 19 5 Power 10 | . . . 1 . . . 4 . . . . 5 . Propulsion 24 | . . 1 1 . . . 8 . 2 . 5 5 2 Utility 13 | . . . . . . . 4 . . . 2 5 2 Weapon 12 | . . . 2 . . . 4 . . . 1 4 1 Highest Loss Streak 14 | . . 1 4 . . . 14 . 2 . 3 8 4 To Critical Strikes . | . . . . . . . . . . . . . . Average Backups 4 | . 3 5 5 5 5 6 5 6 6 6 4 2 2 Power 1 | . 1 1 . . . . . 2 2 3 3 . . Propulsion . | . 1 2 2 2 2 2 . 2 1 . . . . Utility . | . . 1 1 3 3 3 1 1 . . . . . Weapon 1 | . . 1 . . . 1 3 1 2 3 1 1 1 Tool/Special . | . . . . . . . . . . . . . . Unused Backups 16 | . 4 . . . 2 . 5 . . 3 . . 2 Power 2 | . . . . . . . 2 . . . . . . Propulsion 5 | . 4 . . . . . . . . . . . 1 Utility 5 | . . . . . 2 . 3 . . . . . . Weapon 4 | . . . . . . . . . . 3 . . 1 Tool/Special . | . . . . . . . . . . . . . . Average Slot Usage (%) 71 | . 92 90 93 77 77 73 79 89 79 65 66 43 33 Engine 9 | . 14 14 10 11 11 11 7 15 9 6 11 10 . Core 1 | . . . . . . . 7 . . . . . . Leg 2 | . 15 . . . . . . . . . 4 6 . Hover 1 | . 8 . . . . . . . . . 3 1 . Flight 14 | . 4 27 32 33 33 33 17 23 21 20 1 2 10 Device 16 | . 8 19 19 22 22 18 17 20 15 19 19 5 15 Storage 5 | . 12 . 10 11 11 11 9 7 7 6 1 . . Hackware 3 | . . . . . . . 5 . 3 6 6 5 . Energy Gun 7 | . 18 28 20 . . . 1 17 18 . 8 3 . Ballistic Gun 2 | . 9 . . . . . 6 3 . . 2 . . Special Weapon 1 | . . . . . . . . . . 5 3 . . Peak Build Rating 64 | 6 7 17 23 17 33 18 43 42 45 33 56 64 18 Average Rating 25 | 4 6 9 17 16 17 15 25 40 34 29 43 25 15 On Entrance 21 | . 6 6 17 17 17 18 18 36 42 23 30 56 16 Avg Prop Armor Cover (%) 9 | . . . . . . . 10 . . . 4 9 . Naked Turns . | . . . . . . . . . . . . . . Heaviest Build 51 | 12 14 7 12 9 9 9 51 39 38 23 36 44 4 Greatest Support 71 | 20 20 8 18 18 18 18 26 23 23 21 41 71 8 Greatest Overweight (x) 8 | 3 3 . . . . . 4 1 1 1 2 8 1 Average Overweight (x) . | 1 . . . . . . . 1 . . . . . Largest Inventory Capacity 8 | 8 8 5 8 8 8 8 8 8 8 8 8 5 5 Average Capacity 6 | 7 7 5 7 8 8 8 8 8 8 8 5 5 5 Most Carried 8 | 1 7 5 8 6 8 8 8 8 8 8 8 5 5 Average Carried 5 | . 3 4 5 5 5 7 6 7 7 7 5 3 3 Final Capacity 8 | 8 5 5 8 8 8 8 8 8 8 8 5 5 5 Final Carried 8 | 1 5 5 5 5 7 7 7 8 6 8 5 3 3 Class Distribution -------------------- 48% | Mutant 24% | Scavenger-Mutant 9% | Tank 4% | Scavenger-Tank 4% | Scavenger-Sprinter Dominant Class ---------------- Scavenger-Mutant | -10/Materials Scavenger-Mutant | -10/Mines Scavenger-Mutant | -9/Materials Mutant | -9/Mines Mutant | -9/Exiles Scout | -8/Mines Mutant | -8/Materials Skirmisher | -7/Factory Skirmisher | -7/DSF Mutant | -6/Factory Tank | -6/Lower Caves Mutant | -6/Lower Caves Scavenger-Sprinter | -6/Zion Resources | -11 -10 -10 -9 -9 -9 -8 -8 -7 -7 -6 -6 -6 -6 ----------- Run | Yrd Mat Min Mat Min Exi Min Mat Fac DSF Fac Low Low Zio Matter Collected 1667 | 238 134 50 80 50 . . 457 . . . 379 259 20 Remotely . | . . . . . . . . . . . . . . Salvage Created 1749 | . 195 84 84 . . . 652 . . . 294 440 . Parts 94 | . 21 6 6 . . . 31 . . . 15 15 . Haulers Intercepted 1 | . . . . . . . 1 . . . . . . Recyclers Shooed 2 | . 1 . . . . . 1 . . . . . . Parts Field Recycled . | . . . . . . . . . . . . . . Retrieved Matter . | . . . . . . . . . . . . . . Parts Self-Destructed 24 | . . . . . . . . . . . 15 9 . Prevented 2 | . . . . . . . . . . . . 2 . Parts Restored . | . . . . . . . . . . . . . . Kills | -11 -10 -10 -9 -9 -9 -8 -8 -7 -7 -6 -6 -6 -6 ------- Run | Yrd Mat Min Mat Min Exi Min Mat Fac DSF Fac Low Low Zio Combat Hostiles Destroyed 49 | . 8 3 4 . . . 18 . . . 5 11 . Melee 2 | . . . . . . . . . . . . 2 . Guns 30 | . 8 3 4 . . . 8 . . . 5 2 . Cannons 2 | . . . . . . . . . . . . 2 . AOE 13 | . . . . . . . 10 . . . . 3 . Classes Destroyed 10 | . 2 . . . . . 7 . . . . 1 . Worker 1 | . . . . . . . 1 . . . . . . Builder 1 | . . . . . . . 1 . . . . . . Hauler 1 | . . . . . . . 1 . . . . . . Watcher 2 | . . . . . . . 2 . . . . . . Swarmer 15 | . 5 1 3 . . . 2 . . . . 4 . Grunt 25 | . 3 2 1 . . . 12 . . . 2 5 . Brawler 3 | . . . . . . . 1 . . . 1 1 . Sentry 2 | . . . . . . . 2 . . . . . . Hunter 3 | . . . . . . . 1 . . . 2 . . Programmer 1 | . . . . . . . . . . . . 1 . Best Kill Streak 11 | . 3 1 3 . . . 11 . . . 3 2 . Combat Bots Only 10 | . 3 1 3 . . . 10 . . . 3 2 . Max Kills in Single Turn 4 | . 1 1 1 . . . 4 . . . 1 1 . Gunslinging . | . . . . . . . . . . . . . . Exploded 3 | . . . . . . . 3 . . . . 1 . Melee 1 | . . . . . . . . . . . . 1 . Uniques/NPCs Destroyed . | . . . . . . . . . . . . . . Combat | -11 -10 -10 -9 -9 -9 -8 -8 -7 -7 -6 -6 -6 -6 -------- Run | Yrd Mat Min Mat Min Exi Min Mat Fac DSF Fac Low Low Zio Hostile Shots Fired 631 | . 19 10 45 2 . 2 158 . 33 11 92 191 68 Missed 247 | . 2 2 18 1 . 1 49 . 10 9 31 83 41 Hits 384 | . 17 8 27 1 . 1 109 . 23 2 61 108 27 Melee 2 | . . . . . . . . . . . . 1 1 Projectile 382 | . 17 8 27 1 . 1 109 . 23 2 61 107 26 Critical Strikes 12 | . . . . . . . 3 . 3 . 2 2 2 Damage Taken 5740 | . 155 64 308 12 . 17 1713 . 419 34 1027 1574 417 Core 1634 | . 29 6 74 . . . 492 . 177 19 194 380 263 Absorbed by Shields . | . . . . . . . . . . . . . . Regen/Repaired (Parts) 65 | . . . 11 . . . . . . . . . 54 Core Remaining (%) 70 | 100 . 86 . . . 81 10 . 74 . . . . Volleys Fired 120 | . 17 7 25 . . . 34 . . . 12 25 . Largest 3 | . 2 2 2 . . . 2 . . . 2 3 . Hottest 201 | . 80 80 80 . . . 126 . . . 126 201 . Shots Fired 257 | . 34 14 47 . . . 66 . . . 57 39 . Gun 229 | . 34 14 47 . . . 58 . . . 57 19 . Cannon 13 | . . . . . . . . . . . . 13 . Launcher 15 | . . . . . . . 8 . . . . 7 . Special . | . . . . . . . . . . . . . . Kinetic 79 | . 9 . . . . . 27 . . . 39 4 . Thermal 150 | . 25 14 47 . . . 31 . . . 18 15 . Explosive 15 | . . . . . . . 8 . . . . 7 . Electromagnetic 13 | . . . . . . . . . . . . 13 . Robot Hit Streak 15 | . 9 3 11 . . . 13 . . . 15 6 . Robot Miss Streak 6 | . 3 3 6 . . . 2 . . . 2 3 . Penetration Max . | . . . . . . . . . . . . . . Secondary Targets 3 | . . 1 2 . . . . . . . . . . Max Gunslinging Chain 1 | . . 1 1 . . . . . . . . . . Autonomous 51 | . . . . . . . 7 . . . 39 5 . Shots Hit Robots 166 | . 20 6 23 . . . 40 . . . 45 30 2 Core Hits 92 | . 10 4 5 . . . 43 . . . 13 17 . Critical Kills 1 | . . . . . . . . . . . . 1 . Critical Parts Destroyed 1 | . . . . . . . . . . . . 1 . Critical Strikes 3 | . . . . . . . . . . . . 3 . Burn 1 | . . . . . . . . . . . . 1 . Smash 2 | . . . . . . . . . . . . 2 . Melee Attacks 14 | . . . . . . . . . . . . 11 3 Impact 14 | . . . . . . . . . . . . 11 3 Slashing . | . . . . . . . . . . . . . . Piercing . | . . . . . . . . . . . . . . Sneak Attacks . | . . . . . . . . . . . . . . Combat Hostiles . | . . . . . . . . . . . . . . Follow-up Attacks . | . . . . . . . . . . . . . . Damage Inflicted 4730 | . 233 64 275 . . . 1986 . . . 982 1133 57 Guns 2543 | . 232 64 275 . . . 738 . . . 980 254 . Cannons 253 | . . . . . . . . . . . . 253 . Explosions 1605 | . . . . . . . 1248 . . . . 357 . Melee 326 | . . . . . . . . . . . . 269 57 Ramming 3 | . 1 . . . . . . . . . 2 . . Kinetic 1245 | . 57 . . . . . 339 . . . 763 86 . Thermal 1298 | . 175 64 275 . . . 399 . . . 217 168 . Explosive 1605 | . . . . . . . 1248 . . . . 357 . Electromagnetic 253 | . . . . . . . . . . . . 253 . Impact 326 | . . . . . . . . . . . . 269 57 Slashing . | . . . . . . . . . . . . . . Piercing . | . . . . . . . . . . . . . . Highest Corruption 8 | . 1 1 . . . . . . . . . 8 8 Average Corruption 4 | . 1 1 . . . . . . . . . 5 5 Corruption Purged . | . . . . . . . . . . . . . . Corruption Blocked . | . . . . . . . . . . . . . . Effects 24 | . . 1 . . . . . . . . . 21 2 Message Errors 3 | . . . . . . . . . . . . 3 . Matter Fused 6 | . . . . . . . . . . . . 5 1 Heat Flow Errors 1 | . . . . . . . . . . . . . 1 Energy Discharges 4 | . . 1 . . . . . . . . . 3 . Data Loss (minor) 4 | . . . . . . . . . . . . 4 . Data Loss (major) 4 | . . . . . . . . . . . . 4 . Weapon Failures 2 | . . . . . . . . . . . . 2 . Overload Shots . | . . . . . . . . . . . . . . Overflow Damage 116 | . . . . . . . . . . . . 116 . Projectiles . | . . . . . . . . . . . . . . Explosions 60 | . . . . . . . . . . . . 60 . Melee 56 | . . . . . . . . . . . . 56 . Knockbacks . | . . . . . . . . . . . . . . Impact . | . . . . . . . . . . . . . . Kinetic . | . . . . . . . . . . . . . . Secondary . | . . . . . . . . . . . . . . Self-Inflicted Damage 332 | . . . . . . . 147 . . . 1 184 . Shots 8 | . . . . . . . 3 . . . . 5 . Rammed 1 | . . . . . . . . . . . 1 . . Targets Rammed 2 | . 1 . . . . . . . . . 1 . . Kicked 1 | . 1 . . . . . . . . . . . . Crushed . | . . . . . . . . . . . . . . Highest Temperature 460 | . 12 . 112 . . . 381 . . . 21 460 77 Average Temperature 101 | . 7 . 41 . . . 121 . . . 10 144 53 Received Heat Transfer 1523 | . 30 6 63 6 . . 675 . 117 9 126 471 20 Effects 3 | . . . . . . . . . . . . 3 . Shutdowns 2 | . . . . . . . . . . . . 2 . Interference 1 | . . . . . . . . . . . . 1 . Siege Activations . | . . . . . . . . . . . . . . Martial Activations . | . . . . . . . . . . . . . . Shielding Activations . | . . . . . . . . . . . . . . Robots Disrupted . | . . . . . . . . . . . . . . Combat Hostiles . | . . . . . . . . . . . . . . Robots Corrupted 2 | . . . . . . . . . . . . 2 . Combat Hostiles 2 | . . . . . . . . . . . . 2 . Parts Fried . | . . . . . . . . . . . . . . Impact Corruptions 2 | . . . . . . . . . . . . 2 . Robots Melted . | . . . . . . . . . . . . . . Combat Hostiles . | . . . . . . . . . . . . . . Parts Melted 5 | . . 1 2 . . . 1 . . . 1 . . Heat Transferred 2914 | . 400 150 625 . . . 851 . . . 481 407 . Parts Sabotaged . | . . . . . . . . . . . . . . Parts Stolen . | . . . . . . . . . . . . . . Parts Stripped . | . . . . . . . . . . . . . . Power Chain Reactions . | . . . . . . . . . . . . . . Alert | -11 -10 -10 -9 -9 -9 -8 -8 -7 -7 -6 -6 -6 -6 ------- Run | Yrd Mat Min Mat Min Exi Min Mat Fac DSF Fac Low Low Zio Maximum Alert Level 1 | . . . . . . . 1 . . . . . . Low Security (%) 86 | 100 100 100 100 100 . 100 68 100 100 100 . . . Level 1 13 | . . . . . . . 31 . . . . . . Level 2 . | . . . . . . . . . . . . . . Level 3 . | . . . . . . . . . . . . . . Level 4 . | . . . . . . . . . . . . . . Level 5 . | . . . . . . . . . . . . . . High Security . | . . . . . . . . . . . . . . Max Security . | . . . . . . . . . . . . . . Peak Influence 305 | . 175 115 60 15 . . 305 81 3 45 . . . Initial 81 | . . 56 37 . . . . 81 3 . . . . Average 58 | . 77 48 15 2 . . 99 35 2 3 . . . Influence Increases 1978 | . 275 205 115 15 . . 678 5 . 45 270 370 . Destroy 0b10 Robot/C 1060 | . 160 140 80 . . . 360 . . . 100 220 . Destroy 0b10 Robot/NC 25 | . . . . . . . 25 . . . . . . Destroy Leader 186 | . 10 30 20 . . . 76 . . . 20 30 . Allied During Kill 20 | . . 20 . . . . . . . . . . . Successful Hack 5 | . . . . . . . . 5 . . . . . Disable Machine 45 | . . 15 . . . . 30 . . . . . . Destroy Structure 67 | . . . . . . . 67 . . . . . . Partial Spotted 15 | . . . 15 . . . . . . . . . . Lose Combat Pursuer 555 | . 105 . . 15 . . 120 . . 45 150 120 . Influence Decreases 1978 | . 130 255 210 . 15 . 497 181 5 45 270 303 67 Entered New Map 331 | . . 89 58 . 15 . . 100 2 . . . 67 Time Decay 1282 | . 130 156 122 . . . 297 81 . 45 235 216 . Lost Part 365 | . . 10 30 . . . 200 . 3 . 35 87 . Squads Dispatched 11 | . . . 1 . . . 3 1 1 5 . . . Investigation 5 | . . . . . . . 2 1 . 2 . . . Extermination 1 | . . . . . . . . . . 1 . . . Reinforcement 5 | . . . 1 . . . 1 . 1 2 . . . Assault . | . . . . . . . . . . . . . . Garrison . | . . . . . . . . . . . . . . Intercept . | . . . . . . . . . . . . . . Searches Triggered . | . . . . . . . . . . . . . . Construction Impeded . | . . . . . . . . . . . . . . Haulers Reinforced . | . . . . . . . . . . . . . . Active Scanning Responses . | . . . . . . . . . . . . . . Cargo Convoy Interrupts . | . . . . . . . . . . . . . . Stealth | -11 -10 -10 -9 -9 -9 -8 -8 -7 -7 -6 -6 -6 -6 --------- Run | Yrd Mat Min Mat Min Exi Min Mat Fac DSF Fac Low Low Zio Distress Signals 3 | . 2 . . . . . 1 . . . . . . Communications Jammed . | . . . . . . . . . . . . . . Distress Signals . | . . . . . . . . . . . . . . Times Spotted 164 | . 17 6 14 11 . 1 36 . 5 7 19 18 30 Peak Tracking Total 24 | . 7 3 6 21 . 1 15 . 5 3 4 4 24 Tactical Retreats 27 | . 4 . . 1 . . 5 . . 1 7 5 4 Traps | -11 -10 -10 -9 -9 -9 -8 -8 -7 -7 -6 -6 -6 -6 ------- Run | Yrd Mat Min Mat Min Exi Min Mat Fac DSF Fac Low Low Zio Traps Triggered 2 | . 1 . . . . . 1 . . . . . . Indirectly . | . . . . . . . . . . . . . . Trap Hack Attempts . | . . . . . . . . . . . . . . Triggered . | . . . . . . . . . . . . . . Disarmed . | . . . . . . . . . . . . . . Reprogrammed . | . . . . . . . . . . . . . . Reused . | . . . . . . . . . . . . . . Traps Extracted . | . . . . . . . . . . . . . . Installed . | . . . . . . . . . . . . . . Triggered . | . . . . . . . . . . . . . . Machines | -11 -10 -10 -9 -9 -9 -8 -8 -7 -7 -6 -6 -6 -6 ---------- Run | Yrd Mat Min Mat Min Exi Min Mat Fac DSF Fac Low Low Zio Machines Disabled 3 | . . 1 . . . . 2 . . . . . . Max in Single Turn 1 | . . . . . . . 1 . . . . . . Machines Repaired . | . . . . . . . . . . . . . . Machines Dismantled . | . . . . . . . . . . . . . . Machines Sabotaged . | . . . . . . . . . . . . . . Overloaded Fab Kills . | . . . . . . . . . . . . . . Hacking | -11 -10 -10 -9 -9 -9 -8 -8 -7 -7 -6 -6 -6 -6 --------- Run | Yrd Mat Min Mat Min Exi Min Mat Fac DSF Fac Low Low Zio Machines Accessed 9 | . . . 1 . 2 . 1 2 . 3 . . . Terminals 1 | . . . . . . . . 1 . . . . . Fabricators 1 | . . . . . . . . 1 . . . . . Repair Stations 2 | . . . 1 . . . . . . 1 . . . Recycling Units 2 | . . . . . . . . . . 2 . . . Scanalyzers 1 | . . . . . . . 1 . . . . . . Garrison Access . | . . . . . . . . . . . . . . Total Hacks 19 | . . . 2 . 2 . 4 4 . 7 . . . Successful 13 | . . . 2 . 2 . 3 3 . 3 . . . Failed 5 | . . . . . . . . 1 . 4 . . . Catastrophic 2 | . . . . . . . . . . 2 . . . Database Lockouts 1 | . . . . . . . 1 . . . . . . Manual 2 | . . . . . 2 . . . . . . . . Terminals 2 | . . . . . . . . 2 . . . . . Fabricators 2 | . . . . . . . . 2 . . . . . Repair Stations 4 | . . . 2 . . . . . . 2 . . . Recycling Units 5 | . . . . . . . . . . 5 . . . Scanalyzers 4 | . . . . . . . 4 . . . . . . Garrison Access . | . . . . . . . . . . . . . . Terminal Hacks 3 | . . . . . 2 . . 1 . . . . . Record 1 | . . . . . 1 . . . . . . . . Open DSF 1 | . . . . . . . . 1 . . . . . Proto ID Catalog 1 | . . . . . 1 . . . . . . . . Fabricator Hacks 2 | . . . . . . . . 2 . . . . . Load Schematic 1 | . . . . . . . . 1 . . . . . Build 1 | . . . . . . . . 1 . . . . . Repair Station Hacks 3 | . . . 2 . . . . . . 1 . . . Scan Component 1 | . . . 1 . . . . . . . . . . Repair 1 | . . . 1 . . . . . . . . . . Refit 1 | . . . . . . . . . . 1 . . . Recycling Unit Hacks 2 | . . . . . . . . . . 2 . . . Process 2 | . . . . . . . . . . 2 . . . Scanalyzer 3 | . . . . . . . 3 . . . . . . Insert Component 1 | . . . . . . . 1 . . . . . . Analyze 1 | . . . . . . . 1 . . . . . . Retrieve Study 1 | . . . . . . . 1 . . . . . . Garrison Access Hacks . | . . . . . . . . . . . . . . Unauthorized Hacks . | . . . . . . . . . . . . . . Terminals . | . . . . . . . . . . . . . . Fabricators . | . . . . . . . . . . . . . . Repair Stations . | . . . . . . . . . . . . . . Recycling Units . | . . . . . . . . . . . . . . Scanalyzers . | . . . . . . . . . . . . . . Garrison Access . | . . . . . . . . . . . . . . Data Cores Recovered . | . . . . . . . . . . . . . . Used . | . . . . . . . . . . . . . . Hacking Detections 6 | . . . 1 . . . 1 1 . 3 . . . Full Trace Events 4 | . . . . . . . 1 1 . 2 . . . Feedback Events . | . . . . . . . . . . . . . . Feedback Blocked . | . . . . . . . . . . . . . . Robot Schematics Acquired 3 | . . . . . . . . . . . . . 3 Robots Built . | . . . . . . . . . . . . . . Authchips . | . . . . . . . . . . . . . . Time . | . . . . . . . . . . . . . . Total Robot Build Rating . | . . . . . . . . . . . . . . Part Schematics Acquired 16 | . . . . . . . 1 . . . . . 15 Parts Built . | . . . . . . . . . . . . . . Authchips . | . . . . . . . . . . . . . . Time 51 | . . . . . . . . 51 . . . . . Total Part Build Rating . | . . . . . . . . . . . . . . Part Studies Acquired 1 | . . . . . . . 1 . . . . . . Parts Repaired 1 | . . . 1 . . . . . . . . . . Time 108 | . . . 108 . . . . . . . . . . Parts Recycled . | . . . . . . . . . . . . . . Recycled Matter 44 | . . . . . . . . . . 44 . . . Retrieved Matter . | . . . . . . . . . . . . . . Retrieved Components . | . . . . . . . . . . . . . . Parts Scanalyzed 1 | . . . . . . . 1 . . . . . . Part Schematics Acquired 1 | . . . . . . . 1 . . . . . . Parts Damaged . | . . . . . . . . . . . . . . Bothacking | -11 -10 -10 -9 -9 -9 -8 -8 -7 -7 -6 -6 -6 -6 ------------ Run | Yrd Mat Min Mat Min Exi Min Mat Fac DSF Fac Low Low Zio Used RIF Installer . | . . . . . . . . . . . . . . Robots Hacked . | . . . . . . . . . . . . . . Non-combat . | . . . . . . . . . . . . . . Combat . | . . . . . . . . . . . . . . Robot Hacks Applied . | . . . . . . . . . . . . . . Relay Couplers Released . | . . . . . . . . . . . . . . Fabnet Peak Effective % . | . . . . . . . . . . . . . . Robots Rewired . | . . . . . . . . . . . . . . Allies Hacked . | . . . . . . . . . . . . . . Hacks Repelled . | . . . . . . . . . . . . . . Allies | -11 -10 -10 -9 -9 -9 -8 -8 -7 -7 -6 -6 -6 -6 -------- Run | Yrd Mat Min Mat Min Exi Min Mat Fac DSF Fac Low Low Zio Total Allies 2 | . . 2 . . . . . . . . . . . Largest Group 2 | . . 2 2 . . . . . . . . . . Highest-Rated Group 44 | . . 44 44 . . . . . . . . . . Highest-Rated Ally 31 | . . 31 31 . . . . . . . . . . Total Orders . | . . . . . . . . . . . . . . Ally Attacks 17 | . . 17 . . . . . . . . . . . Total Damage 172 | . . 172 . . . . . . . . . . . Kills 4 | . . 4 . . . . . . . . . . . Allies Corrupted . | . . . . . . . . . . . . . . Allies Melted . | . . . . . . . . . . . . . . Intel | -11 -10 -10 -9 -9 -9 -8 -8 -7 -7 -6 -6 -6 -6 ------- Run | Yrd Mat Min Mat Min Exi Min Mat Fac DSF Fac Low Low Zio Active Infowar (turns) 967 | . . 132 295 70 263 2 36 . . . . 169 . Sensors 762 | . . 132 295 70 263 2 . . . . . . . Terrain 36 | . . . . . . . 36 . . . . . . Seismic 151 | . . . . . . . . . . . . 151 . Cloaking 32 | . . . 14 . . . . . . . . 18 . Robot Analysis Total . | . . . . . . . . . . . . . . Derelict Logs Recovered 6 | . . 1 . . . . . . . . 1 2 2 Drone Launches . | . . . . . . . . . . . . . . Drone Recoveries . | . . . . . . . . . . . . . . Exploration | -11 -10 -10 -9 -9 -9 -8 -8 -7 -7 -6 -6 -6 -6 ------------- Run | Yrd Mat Min Mat Min Exi Min Mat Fac DSF Fac Low Low Zio Turns Passed 6272 | 74 330 339 403 71 263 61 1644 208 59 596 1037 915 272 Spaces Moved 7082 | 46 224 572 318 166 756 160 1186 169 51 1026 859 897 652 Core 300 | 28 . . . . . . 11 . . . 5 224 32 Treads 29 | . . . . . . . 29 . . . . . . Legs 538 | 18 93 . . . . . . . . . 256 171 . Wheels . | . . . . . . . . . . . . . . Hover 597 | . 49 . . . . . . . . . 470 78 . Flight 5618 | . 82 572 318 166 756 160 1146 169 51 1026 128 424 620 Fastest Speed 32 | 50 37 37 34 34 34 34 34 114 34 34 34 32 32 Average Speed 65 | 140 95 37 34 34 34 34 96 114 85 34 110 84 33 Slowest Speed 450 | 200 280 37 37 34 34 34 380 114 117 114 190 450 100 Overloaded Moves . | . . . . . . . . . . . . . . Propulsion Burnouts . | . . . . . . . . . . . . . . Robots Hopped 15 | . . 1 1 . . 1 1 . 1 10 . . . Potential Cave-ins . | . . . . . . . . . . . . . . Cave-ins Triggered . | . . . . . . . . . . . . . . Exploration Rate (%) 48 | 3 27 97 24 38 92 34 42 6 44 18 90 90 78 Regions Visited 13 Branch Regions 7 Pre-discovered Areas 2 | . . . . 1 . . . . . . . . 1 Known Exits Taken 2 | . . . . . . . . 1 . . 1 . . Unknown Exits Taken 10 | 1 1 1 1 1 1 1 1 . . 1 . 1 . Scrap Searched 9 | . . 1 . . . . . . . . 3 3 2 Spaces Dug 41 | . . . . . . . 23 . . . . 18 . Terrain Destroyed 190 | . . . . . . . 75 . . . 21 94 . Melee . | . . . . . . . . . . . . . . Projectile 27 | . . . . . . . 5 . . . 21 1 . AOE 163 | . . . . . . . 70 . . . . 93 . Terrain Rammed . | . . . . . . . . . . . . . . Walls Destroyed . | . . . . . . . . . . . . . . Machines Disabled . | . . . . . . . . . . . . . . Actions | -11 -10 -10 -9 -9 -9 -8 -8 -7 -7 -6 -6 -6 -6 --------- Run | Yrd Mat Min Mat Min Exi Min Mat Fac DSF Fac Low Low Zio Total 8472 | 52 306 684 565 179 762 165 1628 183 67 1265 924 994 698 Wait 993 | . 37 100 200 10 . 5 314 4 8 224 38 21 32 Move 7039 | 45 223 569 315 165 755 157 1183 168 48 1005 858 896 652 Hop 15 | . . 1 1 . . 1 1 . 1 10 . . . Pick Up 54 | 1 8 1 6 . 3 . 17 1 1 5 2 6 3 Fast Attach 68 | 6 2 1 3 . . . 24 4 . 3 7 15 3 Attach 44 | . . 1 7 1 1 1 15 . 4 2 4 7 1 Detach 32 | . 2 . 2 1 1 1 13 1 2 4 . 4 1 Swap 27 | . 8 2 1 2 . . 9 2 . 3 . . . Drop 64 | . 8 2 5 . 2 . 18 3 3 9 2 9 3 Fire 120 | . 17 7 25 . . . 34 . . . 12 25 . Melee 14 | . . . . . . . . . . . . 11 3 Ram 1 | . . . . . . . . . . . 1 . . Kick 1 | . 1 . . . . . . . . . . . . Crush . | . . . . . . . . . . . . . . Escape Stasis . | . . . . . . . . . . . . . . Rewire . | . . . . . . . . . . . . . . Trap . | . . . . . . . . . . . . . . Miscellaneous . | . . . . . . . . . . . . . . Route ------- -11/Scrapyard -10/Materials -10/Mines (discovered 2 exits: *Mat x2) -9/Materials -9/Mines -9/Exiles (discovered 2 exits: [*Min x2]) -8/Mines -8/Materials (discovered 2 exits: *Fac / [*Sto]) -7/Factory -7/DSF -6/Factory (discovered 2 exits: [*Fac] / [*Low]) -6/Lower Caves -6/Lower Caves -6/Zion History --------- Turn | Location | Event 5 | -11/Scrapyard | Discovered new exit (range 15) 75 | -11/Scrapyard | Entered Materials 281 | -10/Materials | Discovered new exit (range 8) 405 | -10/Materials | Entered Mines 430 | -10/Mines | Learned Materials stockpile data 502 | -10/Mines | Build established: Scavenger-Mutant 611 | -10/Mines | Found a damaged Exp. Sensor Array with a note attached 612 | -10/Mines | Found Prototype Device 612 | -10/Mines | Identified Exp. Sensor Array 652 | -10/Mines | Discovered new exit (range 11) 689 | -10/Mines | Discovered new exit (range 8) 744 | -10/Mines | Entered Materials 744 | -9/Materials | Accompanied by 2 allies 744 | -9/Materials | Evolved 2 slots: Propulsion x1, Utility x1 749 | -9/Materials | Led the pair of lost Derelicts to an unsafe place 859 | -9/Materials | Repaired Exp. Sensor Array 1145 | -9/Materials | Discovered new exit (range 6) 1147 | -9/Materials | Entered Mines 1148 | -9/Mines | Learned location of Storage (-8) 1155 | -9/Mines | Lost 4 parts (1p1n2w) 1201 | -9/Mines | Assembled infested the area 1215 | -9/Mines | Deemed a non-threat by the Exiles lab entrance 1215 | -9/Mines | Discovered new exit (range 5) 1218 | -9/Mines | Entered Exiles 1225 | -9/Exiles | Discovered new exit (range 15) 1228 | -9/Exiles | Met 8R-AWN 1234 | -9/Exiles | Met EX-HEX 1245 | -9/Exiles | Met EX-BIN 1262 | -9/Exiles | Aligned with FarCom system 1262 | -9/Exiles | Given EX-Vault access code 1289 | -9/Exiles | Met EX-DEC 1300 | -9/Exiles | Visited The Gauntlet 1388 | -9/Exiles | Opened EX-Vault 1391 | -9/Exiles | Found PSU Rigger 1394 | -9/Exiles | Found Lightpack 2.0 1402 | -9/Exiles | Warned to stay clear of 0b10 Research branches 1414 | -9/Exiles | Found AWS/Gauss 1437 | -9/Exiles | Build established: Mutant 1477 | -9/Exiles | Discovered new exit (range 12) 1481 | -9/Exiles | Left Exiles lab with AWS/Gauss 1481 | -9/Exiles | Entered Mines 1522 | -8/Mines | Discovered new exit (range 9) 1542 | -8/Mines | Entered Materials 1542 | -8/Materials | Evolved 2 slots: Power x1, Utility x1 1653 | -8/Materials | Central database locked down 1875 | -8/Materials | Lost 6 parts (1p4n1u) 2157 | -8/Materials | Build established: Scavenger-Mutant 2523 | -8/Materials | Discovered new exit (range 15) 2543 | -8/Materials | Core integrity fell below 50% 2583 | -8/Materials | Core integrity fell below 20% 2589 | -8/Materials | Destroyed 10 combat bots 2619 | -8/Materials | Lost 14 parts (3p4n3u4w) 2803 | -8/Materials | Build established: Mutant 3000 | -8/Materials | Discovered new exit (range 16) 3186 | -8/Materials | Entered Factory 3186 | -7/Factory | Evolved 2 slots: Power x1, Weapon x1 3393 | -7/Factory | Identified exit to DSF 3394 | -7/Factory | Entered DSF 3438 | -7/DSF | Discovered new exit (range 14) 3443 | -7/DSF | Additional patrols routed to DSF 3453 | -7/DSF | Entered Factory 3453 | -6/Factory | Evolved 2 slots: Propulsion x1, Utility x1 3474 | -6/Factory | Discovered new exit (range 9) 3732 | -6/Factory | Discovered new exit (range 9) 4049 | -6/Factory | Entered Lower Caves 4150 | -6/Lower Caves | Encountered a Warlord checkpoint 4505 | -6/Lower Caves | Build established: Tank 4544 | -6/Lower Caves | Identified exit to Lower Caves 4747 | -6/Lower Caves | Lost 3 parts (1n1u1w) 5086 | -6/Lower Caves | Entered another Lower Caves area 5225 | -6/Lower Caves | AWS/Gauss suddenly broke down 5313 | -6/Lower Caves | Lost 6 parts (3n3u) 5605 | -6/Lower Caves | Attracted the attention of an 0b10 checkpoint 5682 | -6/Lower Caves | Lost 8 parts (3p2n1u2w) 5687 | -6/Lower Caves | Core integrity fell below 50% 5724 | -6/Lower Caves | Build established: Mutant 5727 | -6/Lower Caves | Learned Factory security intel 5750 | -6/Lower Caves | Learned Factory stockpile data 5969 | -6/Lower Caves | Spotted B-75 Beast 5994 | -6/Lower Caves | Discovered new exit (range 7) 6001 | -6/Lower Caves | Entered Zion 6034 | -6/Zion | System corruption cleaned by Quarantine Array 6046 | -6/Zion | Learned Factory terminal intel 6172 | -6/Zion | Rebuked by Imprinter 6179 | -6/Zion | Attempted to imprint without authorization 6179 | -6/Zion | Attacked by Zionites 6244 | -6/Zion | Spotted 9T-9LO(B) 6245 | -6/Zion | Spotted 87-455(B) 6254 | -6/Zion | Core integrity fell below 20% 6257 | -6/Zion | NK-0LA came to Zion's defense 6273 | -6/Zion | Destroyed by NK-0LA with NK-0LA's Tesla Doomcannon Last Messages --------------- 06233_ 7L-FOI(z) pulls a Mak. Spear out of the Twisted Machinery. 06240_ XA-KZ2(z) pulls a Mak. Laser out of the Twisted Machinery. 06250_ System Quarantine Field Array disabled. 06250_ Slug penetrates System Quarantine Field Array. 06252_ VTOL Module destroyed. 06253_ Slug penetrates System Quarantine Field Array. 06255_ Penetrated by Slug. 06255_ Adv. Heat Sink destroyed. 06255_ Hpw. Tractor Beam destroyed. 06257_ NK-0LA: "A little bot told me Zion's under atttack, is this your doing?!" 06258_ Mace destroyed. 06266_ System corrupted: Matter fused (-10). 06268_ Acquired Mak. Axe. 06270_ Acquired Mak. Terrain Scan Processor. Map ----- +----------------------------------------------------+ | ?????????????????????????????????????????????????? | | ?????????????????????????????????????????????????? | | ?????????????????????????????????????????????????? | | ?????????????????????????????????????????????????? | | ?????????????????????????????????????????????????? | | ?????????????????????????????????????????????????? | | ?????????????????????????????????????????????????? | | ?????????????????????????????????????????????????? | | ?????????????????????????????????????????????????? | | ?????????????????????????????????????????????????? | | ?????????????????????????????????????????????????? | | ?????????????????????????????????????????????????? | | ?????????????????????????????????????????????????? | | ?????????????????????????????????????????????????? | | ?????????????????????????????????????????????????? | | ?????????????????????????????????????????????????? | | ?????????????????????????????????????????????????? | | ?????????????????????????????????????????????????? | | ?????????????????????????????????????????????????? | | ?????????????????????????????????????????????????? | | ?????????????????????????????????????????????????? | | ?????????????????????????????????????????????????? | | ??????????????? ????????????????????????????????? | | ?????????????? ????????????????????????????????? | | ?????????????? ????#####??????????????????????? | | ??????????????# ???## !@##?????????????????????? | | ??????????????# ???# !#?????????????????????? | | ??????????????? ???#! !#?????????????????????? | | ???????????????# ???## !##?????????????????????? | | ???????????????# ???## ###?????????????????????? | | ??????????###### ???# ###???????????????????? | | ?????????## ####l #######?????????????? | | ?????????# #?????????????? | | ?????????# x #?????????????? | | ?????????# #?????????????? | | ?????????# ## ### ####?????????????? | | ?????????# ##### ##???#????????????????? | | ?????????## ## ###?? #????#######??????????? | | ??????????#???## ##?##????# """#??????????? | | ???????????????## #???###?# "&"#??????????? | | ????????????????### ##?## #### ##?????????? | | #########?????????# #?# ### #?????????? | | """"""""#????????## ### ## #?????????? | | """"" #???????## #?????????? | | ######### ## #?????????? | | %% ###### #?????????? | | ### ##?????????? | | ###### #?# #??????????? | | """"""""#????# ##?# ###### ##??????????? | | """"""""#????## #??# #????## ##???????????? | +----------------------------------------------------+ Best States ------------- Heat Dissipation 75 Energy Generation 40 Energy Capacity 530 Matter Stores 300 Matter Capacity 300 Sight Range 16 Robot Scan Range 20 Terrain Scan Range 16 Terrain Scan Density 210 Cloak Strength 3 Additional Mass Support 6 Armor Coverage 450 Evasion (%) 73 Recoil Reduction 1 Offensive Hacking 10 Item Schematics ----------------- Flight Unit | -8/Materials | Scanalyzed Flexi-carbon Leg | -6/Zion | Archive Arm. Medium Treads | -6/Zion | Archive Magnetic Acceleration Cannon | -6/Zion | Archive Enh. Gauss Cannon | -6/Zion | Archive Drone Bay | -6/Zion | Archive Variable Charge Gun | -6/Zion | Archive Hvy. Plasma Cannon | -6/Zion | Archive Centrium Wheel | -6/Zion | Archive Myomer Leg | -6/Zion | Archive Hyp. Gauss Rifle | -6/Zion | Archive Hvy. Treads | -6/Zion | Archive Matter Compressor | -6/Zion | Archive Hyp. Gauss Cannon | -6/Zion | Archive Imp. Plasma Cutter | -6/Zion | Archive Lgt. Fission Core | -6/Zion | Archive Robot Schematics ------------------ M-22 Extractor | -6/Zion | Archive S-27 Virus | -6/Zion | Archive R-06 Scavenger | -6/Zion | Archive Fabricated ------------ Nothing Repaired ---------- Exp. Sensor Array | 62% | -9/Materials Studied --------- Flight Unit | -8/Materials | Hacked Alien Tech Used ----------------- None Achievements -------------- Drive-By Fitting Room Leap Before You Look Sixth Sense Window Shopping Challenges ------------ None Game ------ Seed DerelictPhysicsExtrapolator Manual? 0 Play Time 01:48:23 Cumulative 17.6 hours Start 2026.01.15 @ 16:16:13 End 2026.01.15 @ 23:14:53 Sessions 3 Manual Loads 0 Difficulty Rogue Special Mode None Game No. 28 Rogue 28 Adventurer 0 Explorer 0 Win Type - Total 0 Types 0/0/0/0/0/0/0/0/0/0 Lore% 11 Gallery% 20 Achievement% 13 Wizard Run 0 Options --------- Layout 1 ASCII 0 Keyboard 1 Movement Vi Keybinds 0 Fullscreen 1 Font 32/SmallcapsGlow Map View 50x35 Zoom Use 0% Tactical HUD 1 Map Filters NONE Filters NONE Steam 1 RUN: 507bfc59-31a9-48f1-ac68-e4b49a4309c8